Workbook

Sheet IPR-MB-Eqs
A1: Approximate Generalized IPR (PSS Rate) and Material Balance Equations
A2: TPG4150 - Reservoir Recovery Methods
A3: Curtis Hays Whitson
A4: 2018-09
A6: pRi | B6: 1000 | C6: bara
A8: PSS Rate Equation
A9: J (pwf>px) | B9: 10 | C9: Sm3/d/bar
A10: px (<=pRi) | B10: 400 | C10: bara
A11: J' (pwf<px) | B11: =$B$9/(2*$B$10) -> 0.0125 | C11: Sm3/d/bar^2
A12: qmax (AOFP) | B12: =MAX(0,$B$9*($B$6-$B$10))+$B$11*(MIN($B$6,$B$10)^2) -> 8000 | C12: Sm3/d
A14: Material Balance | D14: Best-Fit Polynomial Coefficients
A15: Qpu | B15: 100 | C15: Sm3 | D15: a0 | E15: 1 | F15: = 1
A16: m0 (-10 to -0.1) | B16: -3.091426486 | C16: -1 | D16: a1 | E16: =B16 -> -3.091426486 | F16: = m0
A17: m1 (-10 to -0.1) | B17: -0.8638678527 | C17: -1 | D17: a2 | E17: =-3-2*B16-B17 -> 4.046720825 | F17: = -3 - 2m0 - m1
D18: a3 | E18: =B16+B17+2 -> -1.955294339 | F18: = m1 + m0 + 2
A19: Current Conditions
A20: pR (<=pRi) | B20: 600
A21: qmax (AOFP) | B21: =MAX(0,$B$9*($B$20-$B$10))+$B$11*(MIN($B$20,$B$10)^2) -> 4000 | C21: Sm3/d
B23: For Plotting Only | F23: Fitting MB Eq | H23: Convert to (Qd,pd) | M23: For Plotting Only | O23: For Plotting Only
K24: RMS
B25: General Rate Eq. | F25: Actual MB Data | H25: Data | I25: Data | J25: MB Eq. | K25: =SQRT(SUM(K28:K48)) -> 0.05396065945 | M25: General MB Eq. | O25: General MB Eq.
B26: pwf | C26: q | D26: Instant | F26: Qp | G26: pR | H26: Qd | I26: pd | J26: pd | K26: residual | M26: Qd | N26: pd | O26: Qp | P26: pR
B27: bara | C27: Sm3/d | D27: PI=q/dp | F27: Sm3 | G27: bara | O27: Sm3 | P27: bara
B28: =$B$20 -> 600 | C28: =q_ipr($B$9,$B$20,$B$10,B28) -> 0 | F28: 0 | G28: 1000 | H28: =F28/$B$15 -> 0 | I28: =G28/$B$6 -> 1 | J28: =pd(H28,$E$15,$E$16,$E$17,$E$18) -> 1 | K28: =(J28-I28)^2 -> 0 | M28: =F28 -> 0 | N28: =$E$15+$E$16*M28+$E$17*M28^2+$E$18*M28^3 -> 1 | O28: =$B$15*M28 -> 0 | P28: =pR(O28,$B$15,$E$15,$E$16,$E$17,$E$18,$B$6) -> 1000
B29: =MAX(0,B28-25) -> 575 | C29: =q_ipr($B$9,$B$20,$B$10,B29) -> 250 | D29: =IF(B28>0,-(C29-C28)/(B29-B28),0) -> 10 | F29: 1.484419389 | G29: 950 | H29: =F29/$B$15 -> 0.01484419389 | I29: 0.95 | J29: =pd(H29,$E$15,$E$16,$E$17,$E$18) -> 0.9549955656 | K29: =(J29-I29)^2 -> 2.495567522e-05 | M29: 0.025 | N29: =$E$15+$E$16*M29+$E$17*M29^2+$E$18*M29^3 -> 0.9252129869 | O29: =$B$15*M29 -> 2.5 | P29: =pR(O29,$B$15,$E$15,$E$16,$E$17,$E$18,$B$6) -> 925.2129869
B30: 550 | C30: 500 | D30: =IF(B29>0,-(C30-C29)/(B30-B29),0) -> 10 | F30: 3.064294738 | G30: 900 | H30: 0.03064294738 | I30: 0.9 | J30: 0.9090131516 | K30: 8.123690248e-05 | M30: 0.05 | N30: 0.855301066 | O30: 5 | P30: 855.301066
B31: 525 | C31: 750 | D31: 10 | F31: 4.75254106 | G31: 850 | H31: 0.0475254106 | I31: 0.85 | J31: 0.8620089831 | K31: 0.0001442156762 | M31: 0.075 | N31: 0.7900809284 | O31: 7.5 | P31: 790.0809284
B32: 500 | C32: 1000 | D32: 10 | F32: 6.564822816 | G32: 800 | H32: 0.06564822816 | I32: 0.8 | J32: 0.8139402417 | K32: 0.0001943303381 | M32: 0.1 | N32: 0.7293692653 | O32: 10 | P32: 729.3692653
B33: 475 | C33: 1250 | D33: 10 | F33: 8.5203675 | G33: 750 | H33: 0.085203675 | I33: 0.75 | J33: 0.7647674971 | K33: 0.0002180789716 | M33: 0.125 | N33: 0.6729827679 | O33: 12.5 | P33: 672.9827679
B34: 450 | C34: 1500 | D34: 10 | F34: 10.64309251 | G34: 700 | H34: 0.1064309251 | I34: 0.7 | J34: 0.7144587143 | K34: 0.0002090544195 | M34: 0.15 | N34: 0.6207381273 | O34: 15 | P34: 620.7381273
B35: 425 | C35: 1750 | D35: 10 | F35: 12.96319977 | G35: 650 | H35: 0.1296319977 | I35: 0.65 | J35: 0.6629957426 | K35: 0.0001688893255 | M35: 0.175 | N35: 0.5724520346 | O35: 17.5 | P35: 572.4520346
B36: 400 | C36: 2000 | D36: 10 | F36: 15.519466 | G36: 600 | H36: 0.15519466 | I36: 0.6 | J36: 0.6103851972 | K36: 0.0001078523219 | M36: 0.2 | N36: 0.5279411811 | O36: 20 | P36: 527.9411811
B37: 375 | C37: 2242.1875 | D37: 9.6875 | F37: 18.36259817 | G37: 550 | H37: 0.1836259817 | I37: 0.55 | J37: 0.5566767509 | K37: 4.457900266e-05 | M37: 0.225 | N37: 0.4870222578 | O37: 22.5 | P37: 487.0222578
B38: 350 | C38: 2468.75 | D38: 9.0625 | F38: 21.56024263 | G38: 500 | H38: 0.2156024263 | I38: 0.5 | J38: 0.501994109 | K38: 3.976470676e-06 | M38: 0.25 | N38: 0.449511956 | O38: 25 | P38: 449.511956
B39: 325 | C39: 2679.6875 | D39: 8.4375 | F39: 25.20453673 | G39: 450 | H39: 0.2520453673 | I39: 0.45 | J39: 0.4465882785 | K39: 1.163984352e-05 | M39: 0.275 | N39: 0.4152269668 | O39: 27.5 | P39: 415.2269668
B40: 300 | C40: 2875 | D40: 7.8125 | F40: 28.08793372 | G40: 415 | H40: 0.2808793372 | I40: 0.415 | J40: 0.4076126545 | K40: 5.457287284e-05 | M40: 0.3 | N40: 0.3839839813 | O40: 30 | P40: 383.9839813
B41: 275 | C41: 3054.6875 | D41: 7.1875 | F41: 34.39690279 | G41: 350 | H41: 0.3439690279 | I41: 0.35 | J41: 0.3358577541 | K41: 0.000200003119 | M41: 0.325 | N41: 0.3555996907 | O41: 32.5 | P41: 355.5996907
B42: 250 | C42: 3218.75 | D42: 6.5625 | F42: 40.3756364 | G42: 300 | H42: 0.403756364 | I42: 0.3 | J42: 0.2828125282 | K42: 0.0002954091874 | M42: 0.35 | N42: 0.3298907862 | O42: 35 | P42: 329.8907862
B43: 225 | C43: 3367.1875 | D43: 5.9375 | F43: 49.77653107 | G43: 237.4 | H43: 0.4977653107 | I43: 0.2374 | J43: 0.2227030752 | K43: 0.0002159995998 | M43: 0.375 | N43: 0.3066739588 | O43: 37.5 | P43: 306.6739588
B44: 200 | C44: 3500 | D44: 5.3125 | F44: 56.63793521 | G44: 200 | H44: 0.5663793521 | I44: 0.2 | J44: 0.1919592782 | K44: 6.465320638e-05 | M44: 0.4 | N44: 0.2857658999 | O44: 40 | P44: 285.7658999
B45: 175 | C45: 3617.1875 | D45: 4.6875 | F45: 67.23397781 | G45: 150 | H45: 0.6723397781 | I45: 0.15 | J45: 0.1565310054 | K45: 4.265403163e-05 | M45: 0.425 | N45: 0.2669833004 | O45: 42.5 | P45: 266.9833004
B46: 150 | C46: 3718.75 | D46: 4.0625 | F46: 78.7379031 | G46: 100 | H46: 0.787379031 | I46: 0.1 | J46: 0.1202308088 | K46: 0.0004092856262 | M46: 0.45 | N46: 0.2501428517 | O46: 45 | P46: 250.1428517
B47: 125 | C47: 3804.6875 | D47: 3.4375 | F47: 89.93850608 | G47: 50 | H47: 0.8993850608 | I47: 0.05 | J47: 0.07049355503 | K47: 0.0004199857979 | M47: 0.475 | N47: 0.2350612448 | O47: 47.5 | P47: 235.0612448
B48: 100 | C48: 3875 | D48: 2.8125 | F48: 99.81210569 | G48: 1 | H48: 0.9981210569 | I48: 0.001 | J48: 0.001616749104 | K48: 3.803794577e-07 | M48: 0.5 | N48: 0.2215551708 | O48: 50 | P48: 221.5551708
B49: 75 | C49: 3929.6875 | D49: 2.1875 | M49: 0.525 | N49: 0.2094413211 | O49: 52.5 | P49: 209.4413211
B50: 50 | C50: 3968.75 | D50: 1.5625 | M50: 0.55 | N50: 0.1985363866 | O50: 55 | P50: 198.5363866
B51: 25 | C51: 3992.1875 | D51: 0.9375 | M51: 0.575 | N51: 0.1886570586 | O51: 57.5 | P51: 188.6570586
B52: 0 | C52: 4000 | D52: 0.3125 | M52: 0.6 | N52: 0.1796200281 | O52: 60 | P52: 179.6200281
B53: 0 | C53: 4000 | D53: 0 | M53: 0.625 | N53: 0.1712419865 | O53: 62.5 | P53: 171.2419865
B54: 0 | C54: 4000 | D54: 0 | M54: 0.65 | N54: 0.1633396248 | O54: 65 | P54: 163.3396248
B55: 0 | C55: 4000 | D55: 0 | M55: 0.675 | N55: 0.1557296341 | O55: 67.5 | P55: 155.7296341
B56: 0 | C56: 4000 | D56: 0 | M56: 0.7 | N56: 0.1482287057 | O56: 70 | P56: 148.2287057
B57: 0 | C57: 4000 | D57: 0 | M57: 0.725 | N57: 0.1406535307 | O57: 72.5 | P57: 140.6535307
B58: 0 | C58: 4000 | D58: 0 | M58: 0.75 | N58: 0.1328208003 | O58: 75 | P58: 132.8208003
B59: 0 | C59: 4000 | D59: 0 | M59: 0.775 | N59: 0.1245472055 | O59: 77.5 | P59: 124.5472055
B60: 0 | C60: 4000 | D60: 0 | M60: 0.8 | N60: 0.1156494376 | O60: 80 | P60: 115.6494376
B61: 0 | C61: 4000 | D61: 0 | M61: 0.825 | N61: 0.1059441877 | O61: 82.5 | P61: 105.9441877
B62: 0 | C62: 4000 | D62: 0 | M62: 0.85 | N62: 0.09524814699 | O62: 85 | P62: 95.24814699
B63: 0 | C63: 4000 | D63: 0 | M63: 0.875 | N63: 0.0833780066 | O63: 87.5 | P63: 83.3780066
B64: 0 | C64: 4000 | D64: 0 | M64: 0.9 | N64: 0.0701504577 | O64: 90 | P64: 70.1504577
M65: 0.925 | N65: 0.05538219143 | O65: 92.5 | P65: 55.38219143
M66: 0.95 | N66: 0.03888989895 | O66: 95 | P66: 38.88989895
M67: 0.975 | N67: 0.02049027142 | O67: 97.5 | P67: 20.49027142
M68: 1 | N68: 0 | O68: 100 | P68: -4.440892099e-13

Sheet Pot-Aq-Gas-MB-ex
A1: POT AQUIFER GAS MATERIAL BALANCE -- Example only
A3: Swc | B3: 0.25
A4: cw | B4: =0.000005*14.5 -> 7.25e-05 | C4: 1/bar
A5: cf | B5: =0.000005*14.5 -> 7.25e-05 | C5: 1/bar
A6: M | B6: 4 | E6: HCPV =
A7: ce | B7: =(B5+B4*B3+B6*(B4+B5))/(1-B3) -> 0.0008941666667 | C7: 1/bar | E7: Constant | F7: Pot Aq
E8: RF | F8: RF
B9: p | C9: Z | D9: p/Z | E9: Gp/G | F9: Gp/G
B10: bara | D10: bara | E10: % | F10: %
A12: pRi | B12: 1000 | C12: 1.876173641 | D12: =B12/C12 -> 532.9997065 | E12: =100*(1-D12/$D$12) -> 0 | F12: =100*(1-(D12*(1-$B$7*($B$12-B12))/$D$12)) -> 0
B13: 950 | C13: 1.809221392 | D13: =B13/C13 -> 525.0877555 | E13: =100*(1-D13/$D$12) -> 1.484419389 | F13: =100*(1-(D13*(1-$B$7*($B$12-B13))/$D$12)) -> 5.888886805
B14: 900 | C14: 1.741934277 | D14: 516.6670245 | E14: 3.064294738 | F14: 11.73196238
B15: 850 | C15: 1.674320357 | D15: 507.6686766 | E15: 4.75254106 | F15: 17.52760649
B16: 800 | C16: 1.606395961 | D16: 498.0092201 | E16: 6.564822816 | F16: 23.274147
B17: 750 | C17: 1.538189641 | D17: 487.5861727 | E17: 8.5203675 | F17: 28.96987702
B18: 700 | C18: 1.46974821 | D18: 476.2720547 | E18: 10.64309251 | F18: 34.61308294
B19: 650 | C19: 1.401146255 | D19: 463.9058897 | E19: 12.96319977 | F19: 40.20209171
B20: 600 | C20: 1.332501266 | D20: 450.2809982 | E20: 15.519466 | F20: 45.735337
B21: 550 | C21: 1.263998461 | D21: 435.1271121 | E21: 18.36259817 | F21: 51.21144773
B22: 500 | C22: 1.195932843 | D22: 418.0836766 | E22: 21.56024263 | F22: 56.62935082
B23: 450 | C23: 1.128782551 | D23: 398.6595997 | E23: 25.20453673 | F23: 61.98832227
B24: 415 | C24: 1.082727978 | D24: 383.2911022 | E24: 28.08793372 | F24: 65.70423669
B25: 350 | C25: 1.000960019 | D25: 349.6643156 | E25: 34.39690279 | F25: 72.52596958
B26: 300 | C26: 0.9439968133 | D26: 317.797683 | E26: 40.3756364 | F26: 77.69551932
B27: 237.4 | C27: 0.8868436049 | D27: 267.690942 | E27: 49.77653107 | F27: 84.02348763
B28: 200 | C28: 0.865352538 | D28: 231.1196781 | E28: 56.63793521 | F28: 87.65626556
B29: 150 | C29: 0.8588959762 | D29: 174.6428021 | E29: 67.23397781 | F29: 92.13751992
B30: 100 | C30: 0.8824029208 | D30: 113.3269141 | E30: 78.7379031 | F30: 95.84857558
B31: 50 | C31: 0.9323534141 | D31: 53.62773305 | E31: 89.93850608 | F31: 98.48532594
B32: 1 | C32: 0.9985260472 | D32: 1.001476129 | E32: 99.81210569 | F32: 99.97994651
